{"text_format":"2","workbook":"xlsx","n_sheets":1,"sheets":["Plan1"],"not_rendered":{"charts":0,"images":0,"macros":0,"external_links":0,"defined_names":0,"comments":0,"pivot_tables":0},"unopened":[],"bounds":{"document_bytes":16777216,"sheet_cells":100000,"run_cost":"one","rows_first":2000,"rows_last":500,"rows_between":2000,"halvings":0,"cell_chars":16384,"cell_head_chars":4096},"cells_cut":0,"cells_raw":0,"read":"whole","date_system":"1900"}

{"sheet":"Plan1","index":0,"n_rows":66,"n_cols":11,"rows_kept":66,"cut":false,"hidden":false,"merged":[[0,0,0,10],[1,0,1,10],[4,0,4,10],[59,0,59,3],[35,0,35,7],[35,8,35,9],[8,0,8,3],[39,0,39,3],[54,0,54,3],[44,0,44,3],[51,0,51,3]]}
["ANEXO III - FONTE DE RECURSO - RELAÇÃO DE PTRES E PLANOS INTERNOS PARA  2015"]
["SEDE/PR-ESA/PR-ERE"]
["PTRES","PROGRAMA DE TRABALHO","Descrição do Programa de Trabalho","Plano Interno"]
["089684",4122211120000000,"ADMINISTRACAO DA UNIDADE - NACIONAL  - CUSTEIO ADMINISTRATIVO DA CODEVASF"]
["1ª SR"]
[{"$f":"T(\"089664\")","v":"089664"},{"$f":"T(\"11333204447860001\")","v":"11333204447860001"},"Capacitação e Monitoramento da Juventude Rural(Projeto Amanhã)-NACIONAL"]
[{"$f":"T(\"089666\")","v":"089666"},{"$f":"T(\"18544205120N40001\")","v":"18544205120N40001"},"Operação e Manutenção de Infraestrutura Hídrica-Nacional"]
[{"$f":"T(\"089667\")","v":"089667"},{"$f":"T(\"20607201312OB0001\")","v":"20607201312OB0001"},"Transferência da Gestão de Perímetros Públicos de Irrigação-Nacional"]
["2ª SR",null,null,null,"Plano Interno","RP","Local/ UF","Municipio/Est Beneficiado (CONMUN)","Obj. Estrat.","Agregador","Limite Orç."]
[{"$f":"T(\"089664\")","v":"089664"},{"$f":"T(\"11333204447860001\")","v":"11333204447860001"},"Capacitação e Monitoramento da Juventude Rural(Projeto Amanhã)-NACIONAL","AR","BA3377SPAM1",2,"BA","3377","S","PAM","Codevasf"]
[{"$f":"T(\"089666\")","v":"089666"},{"$f":"T(\"18544205120N40001\")","v":"18544205120N40001"},"Operação e Manutenção de Infraestrutura Hídrica-Nacional","AD","BA3377GIEH1",2,"BA","3377","G","IEH","Codevasf"]
[{"$f":"T(\"089667\")","v":"089667"},{"$f":"T(\"20607201312OB0001\")","v":"20607201312OB0001"},"Transferência da Gestão de Perímetros Públicos de Irrigação-Nacional","AI","DIVERSOS",2,"NA","-","-","-","Codevasf"]
[{"$f":"T(\"089669\")","v":"089669"},{"$f":"T(\"20607201320EY0001\")","v":"20607201320EY0001"},"Administração de Perímetros Públicos de Irrigação-Nacional","AI","-","-","NA","-","-","-","Codevasf"]
[{"$f":"T(\"089670\")","v":"089670"},{"$f":"T(\"20608202920NC0001\")","v":"20608202920NC0001"},"Operação e Manutenção de Unidades de Produção Para Apoio aos Arranjos Produtivos Locais-NA","AR","BA3377SAPL1",2,"BA","-","S","-","Codevasf"]
[{"$f":"T(\"089671\")","v":"089671"},{"$f":"T(\"206082052212M0001\")","v":"206082052212M0001"},"Implementação da Criação Intensiva de Peixes em Rios, Grandes Reservatórios e Canais e Perímetros de Irrigação - NA",null,"BA3377SPEX1",2,"BA","3377","S","PEX","Codevasf"]
[{"$f":"T(\"089676\")","v":"089676"},{"$f":"T(\"20608205228190029\")","v":"20608205228190029"},"Funcionamento de Estações e Centros de Pesquisa em Aquicultura-No Estado da Bahia","AR","BA3377SAQC1",2,"BA","3377","S","AQC","Codevasf"]
[{"$f":"T(\"089680\")","v":"089680"},{"$f":"T(\"15244202920N70001\")","v":"15244202920N70001"},"PROVIMENTO DE INFRAESTRUTURA PRODUTIVA PARA ARRANJOS PRODUTIVOS LOCAIS - APLS - PLANO BRASIL SEM MISERIA - Nacional","AR","BA3377SBSM3",2,"BA","3377","S","BSM","PBSM"]
[{"$f":"T(\"089681\")","v":"089681"},{"$f":"T(\"15244202920N90001\")","v":"15244202920N90001"},"APOIO AO ASSOCIATIVISMO E COOPERATIVISMO - PLANO BRASIL SEM MISERIA - NACIONAL","AR","BA3377SBSM3",2,"BA","3377","S","BSM","PBSM"]
[{"$f":"T(\"089682\")","v":"089682"},{"$f":"T(\"206072013140X0001\")","v":"206072013140X0001"},"Regularização Ambiental e Fundiária dos Perímetros Públicos de Irrigação-NA","AI","Diversos",2,"NA","-","-","-","Codevasf"]
[{"$f":"T(\"089683\")","v":"089683"},{"$f":"T(\"22691202920N80001\")","v":"22691202920N80001"},"PROMOCAO DE INICIATIVAS PARA O APRIMORAMENTO DA PRODUCAO E INSERCAO MERCADOLOGICA - PLANO BRASIL SEM MISERIA - NACIONAL - Plano Orçamentário 0001","AR","BA3377SBSM3",2,"BA","3377","S","BSM","PBSM"]
[{"$f":"T(\"089684\")","v":"089684"},{"$f":"T(\"04122211120000001\")","v":"04122211120000001"},"ADMINISTRACAO DA UNIDADE - NACIONAL  - CUSTEIO ADMINISTRATIVO DA CODEVASF","AA","Diversos",2,"NA","-","-","-","Codevasf"]
[{"$f":"T(\"089687\")","v":"089687"},{"$f":"T(\"04127202920WQ0001\")","v":"04127202920WQ0001"},"Elaboração de Estudos e Planos de Desenvolvimento Regional e Territorial-NA",null,"BA3377SPDR1",2,"BA","3377","S","-","Codevasf"]
[{"$f":"T(\"089690\")","v":"089690"},{"$f":"T(\"04122211187850001\")","v":"04122211187850001"},"Gestão e Coordenação do Programa de Aceleração do Crescimento-GAP/PAC-Nacional","PR","MI00639",3,"NA","Diversos","-","-","PAC"]
[{"$f":"T(\"089691\")","v":"089691"},{"$f":"T(\"18544202610ZW0001\")","v":"18544202610ZW0001"},"Recuperação e Controle de PROCESSOS  EROSIVOS Em Municípios das Bacias do São Francisco e do Parnaíba-Nacional","AR","Diversos",3,"NE",null,null,null,"PAC"]
[{"$f":"T(\"089693\")","v":"089693"},{"$f":"T(\"18544205112G50029\")","v":"18544205112G50029"},"Implantação do Sitema Adutor de GUANAMBI  - 1ª Etapa -Com 333 Km no Estado da Bahia-No Estado da Bahia-Projeto executado","AD","MI00605",3,"BA","-","-","-","PAC"]
[{"$f":"T(\"089695\")","v":"089695"},{"$f":"T(\"18544205114RP0001\")","v":"18544205114RP0001"},"REABILITACAO DE BARRAGENS E DE OUTRAS INFRAESTRUTURAS HIDRICAS - NACIONAL-Prod. Infra-estrutura recuperada","AD","Diversos",3,"NA","-","-","-","PAC"]
[{"$f":"T(\"089697\")","v":"089697"},{"$f":"T(\"18544205114VI0001\")","v":"18544205114VI0001"},"IMPLANTACAO DE INFRAESTRUTURAS HIDRICAS PARA OFERTA DEAGUA - NACIONAL","AD","Diversos",3,"NA","-","-","-","PAC"]
[{"$f":"T(\"089698\")","v":"089698"},{"$f":"T(\"185442051140N0001\")","v":"185442051140N0001"},"Recuperação e Adequação de Infraestruturas Hídricas-NA"]
["089702","185442068116F0001","Abastecimento Público de Água Em Comunidades Ribeirinhas do Rio São Francisco ÁGUA PARA TODOS -Nacional-Projeo conluído","AR","Diversos",3,"NA","-","-","-","PAC"]
[{"$f":"T(\"089706\")","v":"089706"},{"$f":"T(\"20607201320WP0001\")","v":"20607201320WP0001"},"REABILITACAO DE PERIMETROS PUBLICOS DE IRRIGACAO - NACIONAL-Perímetro reabilitado","AI","Diversos",3,"NA","-","-","-","PAC"]
[{"$f":"T(\"089708\")","v":"089708"},{"$f":"T(\"20607201353140029\")","v":"20607201353140029"},"Implantação do Perímetro de Irrigação BAIXIO DE IRECÊ Com 59.375 há no Estado da Bahia-No Estado da Bahia-Projeto executado","AD","MI00026",3,"BA","-","-","-","PAC"]
[{"$f":"T(\"089711\")","v":"089711"},{"$f":"T(\"20607201353480029\")","v":"20607201353480029"},"Transferência da Gestão do Perimetro de Irrigação MIRORÓS, com 2.145 há no Estado da Bahia-Perímetro Irrigado transferido","AI","MI00068.",3,"BA","-","-","-","PAC"]
[{"$f":"T(\"089713\")","v":"089713"},{"$f":"T(\"20607201353680029\")","v":"20607201353680029"},"Transferência da Gestão do Perimetro de Irrigação FORMOSOCom 12.048 há No Estado da Bahia-No Estado da Bahia-Períemtro irrigado transferido","AI","MI00065",3,"BA","-","-","-","PAC"]
[{"$f":"T(\"089717\")","v":"089717"},{"$f":"T(\"17512206810RM0001\")","v":"17512206810RM0001"},"Implantação, Ampliação ou Melhoria de Sistemas Públicos de ESGOTAMENTO SANITÁRIO Em Municípios das Bacias do São Francisco e Parnaíba-Nacional-Projeto concluído","AR","Diversos",3,"NA","-","-","-","PAC"]
[{"$f":"T(\"089718\")","v":"089718"},{"$f":"T(\"17512206810RP0001\")","v":"17512206810RP0001"},"Implantação, Ampliação ou Melhoria de Sistemas Públicos de Coleta, Tratamento e Destinação Final de RESIDUOS SÓLIDOS  em Municípios das Bacias do São Francisco e Parnaíba-Nacional-Projeto concluído","AR","Diversos",3,"NA","-","-","-","PAC"]
["E M E N D A S     P A R L A M E N T A R E S"]
["PTRES","PROGRAMA DE TRABALHO","DESCRIÇÃO","ÁREAS","Plano Interno","PI da RT","PARLAMENTAR","RP"]
["099168","1524420297K660029","APOIO A PROJETOS DE DESENVOLVIMENTO SUSTENTAVEL LOCAL INTEGRADO - NO ESTADO DA BAHIA","2ªSR/6ªSR","28710006BA2","28710006RT2","Afonso Florence","6","BA","Emenda"]
["099169","18544205118510029","IMPLANTACAO DE OBRAS DE INFRAESTRUTURA HIDRICA - ESTADO DA BAHIA","2ªSR/6ªSR","28800003BA2","28800003RT2","Walter Pinheiro","6","BA","Emenda"]
["3ª SR"]
["089684",4122211120000000,"ADMINISTRACAO DA UNIDADE - NACIONAL  - CUSTEIO ADMINISTRATIVO DA CODEVASF"]
["093207","18.544.2051.213R.0020","Manutenção Operacional do PISF - Região NE"]
["089707","20.607.2013.5260.0026","Implantação do Perímetro de Irrigação Pontal- c/ 7.862 há em PE"]
["089673","20.608.205.2281.90026","Projeto Bebedouro - CIB"]
["4ª SR"]
["089664","11.333.2044.4786.0001","Capacitação e Monitoramento da Juventude Rural (Projeto Amanhã) – Na região Nordeste ",400000]
[107241,"20.607.2013.20EY.0001","Administração de Perímetros Públicos de Irrigação Nacional – Perímetro Irrigado Mantido","460.100; 460.200; 460.300."]
["089675","20.608.2052.2819.0028","Funcionamento de Estações e Centros de Pesquisa em Aquicultura – No Estado do Sergipe",400000]
["089684","04.122.2111.2000.0001","Administração da Unidade - Nacional",400000]
[89690,"04.122.2111.8785.0001","Gestão e Coordenação do Programa de Aceleração do Crescimento –GAP-PAC- Nacional "," PI MI00639"]
[89683,"22.691.2029.20N8.0001","Provimento de Infrainstrutura Produtiva para Arranjos Produtivos Legais- APLS-Plano Brasil Sem Miséria -NA-MI",400000]
["5ª SR"]
["089684","04.122.2111.2000.0001","ADMINISTRACAO DA UNIDADE - NACIONAL - CUSTEIO ADMINISTRATIVO DA CODEVASF",500000]
["089674","20.608.2052.2819.0027","Funcionamento de Estações e Centros de Pesquisa em Aquicultura-No Estado de Alagoas","AL2833SAQC1"]
["7ª SR"]
["089684","04.122.2111.2000.0001","Administração da Unidade – Nacional",700000]
["099140, 099172, 099141, 099142, 099143, 099120, 099085, 099083, 099173","15.244.2029.7K66.0022","Apoio a Projetos de Desenvolvimento Sustentável Local Integrado – no Estado do Piauí","27050005, 29000003, 27060003, 27070003, 27080001, 23780021, 12460002, 11680001, 29010007"]
[99096.099189,"15.244.2029.7K66.7096","Apoio a Projetos de Desenvolvimento Sustentável Local Integrado – em Municípios - no Estado do Piauí","193500002  -  35230004"]
[99126,"15.244.2029.7K66.1039","Apoio a projetos de desenvolvimento Sustentável Local Integrado – no Município de Crateús – CE",24370024]
["8ª SR"]
["089684",{"$f":"T(\"04122211120000001\")","v":"04122211120000001"},"ADMINISTRACAO DA UNIDADE","800000"]
["089681",{"$f":"T(\"15244202920N90001\")","v":"15244202920N90001"},"APOIO AO ASSOCIATIVISMO E AO COOPERATIVISMO - PLANO BRASIL SEM MISÉRIA","MA0921SBSM3"]
["089671",{"$f":"T(\"206082052212M0001\")","v":"206082052212M0001"},"IMPLEMENTACAO DA CRIACAO INTENSIVA DE PEIXES EM RIOS, GRANDE RESERVATORIOS E CANAIS DE PERIMETROS DE IRRIGACAO.","MA0921SPEX1"]
["089664",{"$f":"T(\"11333204447860001\")","v":"11333204447860001"},"CAPACITACAO E MONITORAMENTO DA JUVENTUDE RURAL (PROJETO AMANHA)","MA0921SPAM1"]
["099054","1524420297K660021","APOIO A PROJETOS DE DESENVOLVIMENTO SUSTENTAVEL LOCAL INTEGRADO - NO ESTADO DO MARANHÃO","81001858RT2"]
["099137","1524420297K667084","APOIO A PROJETOS DE DESENVOLVIMENTO SUSTENTAVEL LOCAL INTEGRADO - EM MUNICIPIOS - NO ESTADO DO MARANHAO","26940001RT2"]